Cogmind - Beta 13 --- EXPLORER MODE // 2024.04.01 @ 03:45:30 Player: Mae Result: Self-destructed Performance ------------- Evolutions (1) 500 Regions Visited (2) 400 Robots Destroyed (11) 55 Value Destroyed (340) 340 Prototype IDs (0) 0 Alien Tech Used (0) 0 Bonus (0) 0 TOTAL SCORE: 1295 Bonus ------- None Cogmind --------- Core Integrity 266/400 Matter 289/300 Energy 95/100 System Corruption 0% Temperature Cool (0) Movement Core (100) Ox1 Location -9/Materials Parts ------- > --- POWER (2) -------- (None) > --- PROPULSION (3) --- (None) > --- UTILITY (3) ------ ECM Suite > --- WEAPON (2) ------- Mining Claw > --- INVENTORY (5) ---- Flight Unit Flight Unit Heat Sink Small Storage Unit Targeting Computer Peak State ------------ > --- POWER ------------ Light Ion Engine > --- PROPULSION ------- Wheel Wheel Wheel > --- UTILITY ---------- ECM Suite Light Armor Plating > --- WEAPON ----------- Assault Rifle Mining Claw > --- INVENTORY -------- Small Storage Unit Targeting Computer [Rating: 8] Favorites ----------- Power Light Ion Engine Engine Light Ion Engine Propulsion Wheel Wheel Wheel Flight Unit Flight Unit Utility Light Armor Plating Device ECM Suite Storage Small Storage Unit Protection Light Armor Plating Weapon Assault Rifle Ballistic Gun Assault Rifle Slashing Weapon Mining Claw Build | -11 -10 -9 ------- Run | Yrd Mat Mat Slots Evolved 3 | . 1 2 Power 1 | . . 1 Propulsion 1 | . 1 . Utility 1 | . . 1 Weapon . | . . . Parts Attached 15 | 5 10 . Power 2 | 1 1 . Engine 2 | 1 1 . Core . | . . . Reactor . | . . . Propulsion 7 | 2 5 . Treads . | . . . Leg . | . . . Wheel 5 | 2 3 . Hover . | . . . Flight 2 | . 2 . Utility 3 | 1 2 . Device 1 | . 1 . Storage 1 | . 1 . Processor . | . . . Hackware . | . . . Protection 1 | 1 . . Artifact . | . . . Weapon 3 | 1 2 . Energy Gun . | . . . Energy Cannon . | . . . Ballistic Gun 2 | 1 1 . Ballistic Cannon . | . . . Launcher . | . . . Special Weapon . | . . . Impact Weapon . | . . . Slashing Weapon 1 | . 1 . Piercing Weapon . | . . . Special Melee Weapon . | . . . Unidentified Prototypes . | . . . Parts Lost 6 | . 2 4 Power 1 | . . 1 Propulsion 3 | . 1 2 Utility 1 | . 1 . Weapon 1 | . . 1 Highest Loss Streak 4 | . 2 4 To Critical Strikes . | . . . Average Slot Usage (%) 81 | . 87 54 Engine 11 | . 12 10 Wheel 24 | . 26 17 Device 7 | . 7 10 Storage 3 | . 4 . Protection 8 | . 10 . Ballistic Gun 14 | . 16 6 Slashing Weapon 8 | . 7 10 Naked Turns . | . . . Heaviest Build 15 | 8 15 9 Greatest Support 30 | 20 30 20 Greatest Overweight (x) 2 | . 1 2 Average Overweight (x) . | . . . Largest Inventory Capacity 8 | 5 8 5 Average Capacity 5 | 5 6 5 Most Carried 5 | 4 5 5 Average Carried 3 | 1 3 4 Final Capacity 5 | 5 5 5 Final Carried 5 | 3 4 5 Class Distribution -------------------- 100% | Hacker-Mutant Dominant Class ---------------- Hacker-Mutant | -10/Materials Hacker-Mutant | -9/Materials Resources | -11 -10 -9 ----------- Run | Yrd Mat Mat Matter Collected 399 | 253 109 37 Remotely . | . . . Salvage Created 414 | 43 319 52 Parts 21 | 2 15 4 Haulers Intercepted . | . . . Recyclers Shooed . | . . . Parts Field Recycled . | . . . Retrieved Matter . | . . . Parts Self-Destructed . | . . . Prevented . | . . . Kills | -11 -10 -9 ------- Run | Yrd Mat Mat Combat Hostiles Destroyed 9 | 1 7 1 Melee 4 | . 3 1 Guns 5 | 1 4 . Classes Destroyed 3 | 1 2 . Watcher 2 | . 1 1 Swarmer 1 | . 1 . Grunt 8 | 1 6 1 Best Kill Streak 2 | 1 2 1 Combat Bots Only 2 | 1 2 1 Max Kills in Single Turn 1 | 1 1 1 Gunslinging . | . . . Exploded . | . . . Melee 1 | . 1 1 Uniques/NPCs Destroyed . | . . . Combat | -11 -10 -9 -------- Run | Yrd Mat Mat Hostile Shots Fired 109 | 1 50 58 Missed 32 | 1 11 20 Damage Taken 612 | . 278 334 Core 189 | . 55 134 Absorbed by Shields . | . . . Ignored by Resistances 380 | . 178 202 Core Remaining (%) 89 | 100 78 . Volleys Fired 25 | 1 18 6 Largest 2 | 1 2 1 Hottest 40 | 20 40 20 Shots Fired 30 | 1 23 6 Gun 30 | 1 23 6 Cannon . | . . . Launcher . | . . . Special . | . . . Kinetic 30 | 1 23 6 Thermal . | . . . Explosive . | . . . Electromagnetic . | . . . Robot Hit Streak 13 | 1 13 7 Robot Miss Streak 2 | . 2 1 Penetration Max . | . . . Secondary Targets . | . . . Shots Hit Robots 46 | 1 30 15 Core Hits 17 | 1 12 4 Critical Kills . | . . . Critical Parts Destroyed . | . . . Critical Strikes . | . . . Melee Attacks 25 | . 14 11 Impact . | . . . Slashing 25 | . 14 11 Piercing . | . . . Sneak Attacks . | . . . Combat Hostiles . | . . . Follow-up Attacks . | . . . Damage Inflicted 766 | 15 507 244 Guns 333 | 15 265 53 Cannons . | . . . Explosions . | . . . Melee 433 | . 242 191 Ramming . | . . . Kinetic 333 | 15 265 53 Thermal . | . . . Explosive . | . . . Electromagnetic . | . . . Impact . | . . . Slashing 433 | . 242 191 Piercing . | . . . Highest Corruption . | . . . Average Corruption . | . . . Corruption Purged . | . . . Corruption Blocked . | . . . Overload Shots . | . . . Overflow Damage . | . . . Projectiles . | . . . Explosions . | . . . Melee . | . . . Knockbacks . | . . . Impact . | . . . Kinetic . | . . . Secondary . | . . . Self-Inflicted Damage . | . . . Shots . | . . . Rammed . | . . . Targets Rammed . | . . . Kicked . | . . . Crushed . | . . . Highest Temperature 11 | . 11 5 Average Temperature 5 | . 5 3 Received Heat Transfer 477 | . 225 252 Siege Activations . | . . . Robots Corrupted . | . . . Combat Hostiles . | . . . Parts Fried . | . . . Impact Corruptions . | . . . Robots Melted . | . . . Combat Hostiles . | . . . Parts Melted . | . . . Heat Transferred . | . . . Parts Sabotaged . | . . . Parts Stolen . | . . . Parts Stripped . | . . . Power Chain Reactions . | . . . Alert | -11 -10 -9 ------- Run | Yrd Mat Mat Peak Influence 216 | 20 216 28 Initial 9 | . 9 6 Average 72 | 5 95 12 Maximum Alert Level 1 | . 1 . Low Security (%) 83 | 100 77 100 Level 1 16 | . 22 . Level 2 . | . . . Level 3 . | . . . Level 4 . | . . . Level 5 . | . . . High Security . | . . . Max Security . | . . . Squads Dispatched . | . . . Investigation . | . . . Extermination . | . . . Reinforcement . | . . . Assault . | . . . Garrison . | . . . Intercept . | . . . Searches Triggered . | . . . Construction Impeded . | . . . Haulers Reinforced . | . . . Active Scanning Responses . | . . . Cargo Convoy Interrupts . | . . . Stealth | -11 -10 -9 --------- Run | Yrd Mat Mat Distress Signals 2 | . 1 1 Communications Jammed . | . . . Distress Signals . | . . . Times Spotted 19 | 1 14 4 Peak Tracking Total 4 | 1 4 4 Tactical Retreats . | . . . Traps | -11 -10 -9 ------- Run | Yrd Mat Mat Traps Triggered . | . . . Indirectly . | . . . Trap Hack Attempts . | . . . Triggered . | . . . Disarmed . | . . . Reprogrammed . | . . . Reused . | . . . Traps Extracted . | . . . Installed . | . . . Triggered . | . . . Machines | -11 -10 -9 ---------- Run | Yrd Mat Mat Machines Disabled . | . . . Max in Single Turn . | . . . Machines Repaired . | . . . Machines Dismantled . | . . . Machines Sabotaged . | . . . Overloaded Fab Kills . | . . . Hacking | -11 -10 -9 --------- Run | Yrd Mat Mat Machines Accessed 3 | . 3 . Terminals 3 | . 3 . Fabricators . | . . . Repair Stations . | . . . Recycling Units . | . . . Scanalyzers . | . . . Garrison Access . | . . . Total Hacks 4 | . 4 . Successful 4 | . 4 . Failed . | . . . Catastrophic . | . . . Database Lockouts . | . . . Manual . | . . . Terminals 4 | . 4 . Fabricators . | . . . Repair Stations . | . . . Recycling Units . | . . . Scanalyzers . | . . . Garrison Access . | . . . Terminal Hacks 4 | . 4 . Record 4 | . 4 . Fabricator Hacks . | . . . Repair Station Hacks . | . . . Recycling Unit Hacks . | . . . Scanalyzer . | . . . Garrison Access Hacks . | . . . Unauthorized Hacks . | . . . Terminals . | . . . Fabricators . | . . . Repair Stations . | . . . Recycling Units . | . . . Scanalyzers . | . . . Garrison Access . | . . . Data Cores Recovered . | . . . Used . | . . . Hacking Detections 1 | . 1 . Full Trace Events . | . . . Feedback Events . | . . . Feedback Blocked . | . . . Robot Schematics Acquired . | . . . Robots Built . | . . . Authchips . | . . . Time . | . . . Total Robot Build Rating . | . . . Part Schematics Acquired . | . . . Parts Built . | . . . Authchips . | . . . Time . | . . . Total Part Build Rating . | . . . Parts Repaired . | . . . Time . | . . . Parts Recycled . | . . . Recycled Matter . | . . . Retrieved Matter . | . . . Retrieved Components . | . . . Parts Scanalyzed . | . . . Part Schematics Acquired . | . . . Parts Damaged . | . . . Bothacking | -11 -10 -9 ------------ Run | Yrd Mat Mat Used RIF Installer . | . . . Robots Hacked . | . . . Non-combat . | . . . Combat . | . . . Robot Hacks Applied . | . . . Relay Couplers Released . | . . . Fabnet Peak Effective % . | . . . Robots Rewired . | . . . Allies Hacked . | . . . Hacks Repelled . | . . . Allies | -11 -10 -9 -------- Run | Yrd Mat Mat Total Allies . | . . . Largest Group . | . . . Highest-Rated Group . | . . . Highest-Rated Ally . | . . . Total Orders . | . . . Ally Attacks . | . . . Total Damage . | . . . Kills . | . . . Allies Corrupted . | . . . Allies Melted . | . . . Intel | -11 -10 -9 ------- Run | Yrd Mat Mat Robot Analysis Total . | . . . Derelict Logs Recovered . | . . . Drone Launches . | . . . Drone Recoveries . | . . . Exploration | -11 -10 -9 ------------- Run | Yrd Mat Mat Turns Passed 607 | 65 444 98 Spaces Moved 538 | 64 411 63 Core 23 | 17 . 6 Treads . | . . . Legs . | . . . Wheels 514 | 47 410 57 Hover . | . . . Flight 1 | . 1 . Fastest Speed 50 | 50 80 80 Average Speed 79 | 72 80 82 Slowest Speed 150 | 80 117 150 Overloaded Moves . | . . . Propulsion Burnouts . | . . . Robots Hopped . | . . . Cave-ins Triggered . | . . . Exploration Rate (%) 25 | 6 63 8 Regions Visited 2 Branch Regions . Pre-discovered Areas . | . . . Known Exits Taken 2 | 1 1 . Unknown Exits Taken . | . . . Scrap Searched . | . . . Spaces Dug . | . . . Terrain Destroyed . | . . . Melee . | . . . Projectile . | . . . AOE . | . . . Terrain Rammed . | . . . Walls Destroyed . | . . . Machines Disabled . | . . . Actions | -11 -10 -9 --------- Run | Yrd Mat Mat Total 634 | 81 473 80 Wait 13 | 4 9 . Move 536 | 63 410 63 Hop . | . . . Pick Up 16 | 8 8 . Fast Attach . | . . . Attach 8 | 5 3 . Detach . | . . . Swap 7 | . 7 . Drop 4 | . 4 . Fire 25 | 1 18 6 Melee 25 | . 14 11 Ram . | . . . Kick . | . . . Crush . | . . . Escape Stasis . | . . . Rewire . | . . . Trap . | . . . Miscellaneous . | . . . Route ------- -11/Scrapyard -10/Materials (discovered 4 exits: *Mat x2 / *Min x2) -9/Materials History --------- Turn | Location | Event 2 | -11/Scrapyard | Met Revision 17 46 | -11/Scrapyard | Identified exit to Materials 46 | -11/Scrapyard | Discovered exit to Materials (range 8) 66 | -11/Scrapyard | Entered Materials 66 | -10/Materials | Evolved 1 slot: Propulsion x1 154 | -10/Materials | Identified exit to Mines 154 | -10/Materials | Discovered exit to Mines (range 8) 171 | -10/Materials | Discovered exit to Mines (range 14) 217 | -10/Materials | Identified exit to Materials 217 | -10/Materials | Discovered exit to Materials (range 15) 301 | -10/Materials | Discovered exit to Materials (range 6) 309 | -10/Materials | Build established: Hacker-Mutant 510 | -10/Materials | Entered another Materials area 510 | -9/Materials | Evolved 2 slots: Power x1, Utility x1 608 | -9/Materials | Self-destructed Last Messages --------------- K-01 Serf cleans the Pressure Siphon. B-36 Bruiser destroyed. K-01 Serf collects debris. G-34 Mercenary Heat Sink ripped off. K-01 Serf collects debris. Wheel destroyed. K-01 Serf cleans the Pressure Siphon. K-01 Serf collects debris. Wheel destroyed. K-01 Serf collects debris. Critical hit (Burn: +37). K-01 Serf cleans the Pressure Siphon. G-34 Mercenary destroyed. Critical hit (Burn: +37). Lgt. Ion Engine destroyed. K-01 Serf cleans the Pressure Siphon. K-01 Serf cleans the Terminal. Acquired 37 matter. Critical hit (Burn: +37). K-01 Serf collects debris. Map ----- +----------------------------------------------------+ | ?????????????????????????????????????????????????? | | ?????????????????????????????????????????????????? | | ?????????????????????????????????????????????????? | | ?????????????????????????????????????????????????? | | ?????????????????????????????????????????????????? | | ?????????????????????????????????????????????????? | | ?????????????????????????????????????????????????? | | ?????????????????????????????????????????????????? | | ?????????????????????????##???####+??????????????? | | ????????????????????????? ?? ????????????? | | ????????????????????????# ? #???????????? | | ????????????????????????# "?" #???????????? | | ????????????????????????# """ #???????????? | | ????????????????????????# """ ????????????? | | ??????????????????????"?# """ #????????????? | | ??????????????????????" # k #????????????? | | ??????????????????????? + #????????????? | | ????????????????????????# #???########## | | ????????????????????????# #??* =[ # | | ????????????????????????# #? =! # "" | | ????????????????????????# # % =] # "" | | ????????????????????????# # # "" | | ????????????????????????# "T" Y ?# "" | | ????????????????????????# m=k *!= #????????# "" | | ????????????????????????# [ !%* #????????# "" | | ????????????????????????#@ #####/ #????????# "" | | ????????????????????? #???# #????????# | | ????????????????????######+##???# ############## | | ????????????????????????????????# | | ????????????????????????????????# | | ????????????????????????????????# | | ????????????????????????????????################## | | ?????????????????????????????????????????????????? | | ?????????????????????????????????????????????????? | | ?????????????????????????????????????????????????? | | ?????????????????????????????????????????????????? | | ?????????????????????????????????????????????????? | | | | | | | | | | | | | | | | | | | | | | | | | | | +----------------------------------------------------+ Best States ------------- Heat Dissipation 28 Energy Generation 10 Energy Capacity 125 Matter Stores 300 Matter Capacity 300 Sight Range 16 Terrain Scan Density 10 ECM Strength 1 Armor Coverage 150 Resistance: KI 35 Resistance: TH 35 Resistance: EX 35 Resistance: EM 35 Resistance: I 35 Resistance: S 35 Resistance: P 35 Evasion (%) 50 Offensive Hacking 20 Item Schematics ----------------- None Robot Schematics ------------------ None Fabricated ------------ Nothing Alien Tech Used ----------------- None Achievements -------------- None Challenges ------------ None Game ------ Seed BiocellGuidanceProjector Manual? 0 Play Time 00:10:33 Cumulative 3.0 hours Start 2024.04.01 @ 03:12:51 End 2024.04.01 @ 03:45:30 Sessions 1 Manual Loads 0 Difficulty Explorer Special Mode None Game No. 9 Rogue 5 Adventurer 0 Explorer 4 Win Type - Total 0 Types 0/0/0/0/0/0/0/0/0 Lore% 12 Gallery% 11 Achievement% 10 Wizard Run 0 Options --------- Layout 2 ASCII 0 Keyboard 0 Movement Numpad Keybinds 0 Fullscreen 2 Font 24/Smallcaps Map View 50x44 Zoom Use 0% Tactical HUD 0 Map Filters NONE Filters NONE Steam 1 RUN: a7341b5a-302c-41b3-b71a-c78217471ed7